Cogmind - Beta 13 @@@ ROGUE MODE // 2024.03.10 @ 21:03:20 Player: Baxter Result: Destroyed by G-47 Trooper with Particle Gun Performance ------------- Evolutions (0) 0 Regions Visited (1) 200 Robots Destroyed (6) 30 Value Destroyed (127) 127 Prototype IDs (0) 0 Alien Tech Used (0) 0 Bonus (0) 0 TOTAL SCORE: 357 Bonus ------- None Cogmind --------- Core Integrity 0/250 Matter 300/300 Energy 100/100 System Corruption 0% Temperature Cool (9) Movement Treading (160) Location -10/Materials Parts ------- > --- POWER (1) -------- (None) > --- PROPULSION (2) --- Light Treads > --- UTILITY (2) ------ Small Storage Unit Small Storage Unit > --- WEAPON (2) ------- (None) > --- INVENTORY (8) ---- Light Ion Engine Light Treads Aluminum Leg Aluminum Leg Compact Wheel Small Laser Peak State ------------ > --- POWER ------------ Light Ion Engine > --- PROPULSION ------- Light Treads Wheel > --- UTILITY ---------- Small Storage Unit Small Storage Unit > --- WEAPON ----------- Assault Rifle Light Assault Rifle > --- INVENTORY -------- Light Ion Engine Light Treads Aluminum Leg Aluminum Leg Compact Wheel Small Laser [Rating: 7] Favorites ----------- Power Light Ion Engine Engine Light Ion Engine Propulsion Light Treads Treads Light Treads Wheel Wheel Utility Small Storage Unit Storage Small Storage Unit Weapon Light Assault Rifle Ballistic Gun Light Assault Rifle Build | -11 -10 ------- Run | Yrd Mat Slots Evolved . | . . Power . | . . Propulsion . | . . Utility . | . . Weapon . | . . Parts Attached 7 | 7 . Power 1 | 1 . Engine 1 | 1 . Core . | . . Reactor . | . . Propulsion 2 | 2 . Treads 1 | 1 . Leg . | . . Wheel 1 | 1 . Hover . | . . Flight . | . . Utility 2 | 2 . Device . | . . Storage 2 | 2 . Processor . | . . Hackware . | . . Protection . | . . Artifact . | . . Weapon 2 | 2 . Energy Gun . | . . Energy Cannon . | . . Ballistic Gun 2 | 2 . Ballistic Cannon . | . . Launcher . | . . Special Weapon . | . . Impact Weapon . | . . Slashing Weapon . | . . Piercing Weapon . | . . Special Melee Weapon . | . . Unidentified Prototypes . | . . Parts Lost 4 | . 4 Power 1 | . 1 Propulsion 1 | . 1 Utility . | . . Weapon 2 | . 2 Highest Loss Streak 2 | . 2 To Critical Strikes . | . . Average Slot Usage (%) 88 | . 88 Engine 7 | . 7 Treads 14 | . 14 Wheel 14 | . 14 Storage 28 | . 28 Ballistic Gun 22 | . 22 Naked Turns . | . . Heaviest Build 16 | 16 16 Greatest Support 20 | 20 20 Greatest Overweight (x) . | . . Average Overweight (x) . | . . Largest Inventory Capacity 8 | 8 8 Average Capacity 7 | 7 8 Most Carried 6 | 6 6 Average Carried 5 | 3 6 Final Capacity 8 | 8 8 Final Carried 6 | 6 6 Class Distribution -------------------- 100% | Mutant Dominant Class ---------------- Mutant | -10/Materials Resources | -11 -10 ----------- Run | Yrd Mat Matter Collected 342 | 286 56 Remotely . | . . Salvage Created 189 | 83 106 Parts 12 | 1 11 Haulers Intercepted . | . . Recyclers Shooed . | . . Parts Field Recycled . | . . Retrieved Matter . | . . Parts Self-Destructed . | . . Prevented . | . . Kills | -11 -10 ------- Run | Yrd Mat Combat Hostiles Destroyed 3 | . 3 Melee 1 | . 1 Guns 2 | . 2 Classes Destroyed 4 | 1 3 Worker 1 | . 1 Builder 1 | . 1 Recycler 1 | 1 . Grunt 3 | . 3 Best Kill Streak 3 | 1 3 Combat Bots Only 1 | . 1 Max Kills in Single Turn 1 | 1 1 Gunslinging . | . . Exploded . | . . Melee 1 | . 1 Uniques/NPCs Destroyed . | . . Combat | -11 -10 -------- Run | Yrd Mat Hostile Shots Fired 63 | . 63 Missed 12 | . 12 Damage Taken 742 | . 742 Core 261 | . 261 Absorbed by Shields . | . . Core Remaining (%) 100 | 100 . Volleys Fired 21 | 4 17 Largest 2 | 2 2 Hottest 40 | 40 40 Shots Fired 42 | 8 34 Gun 42 | 8 34 Cannon . | . . Launcher . | . . Special . | . . Kinetic 42 | 8 34 Thermal . | . . Explosive . | . . Electromagnetic . | . . Robot Hit Streak 10 | 2 10 Robot Miss Streak 4 | 1 4 Penetration Max . | . . Secondary Targets 1 | . 1 Max Gunslinging Chain 1 | . 1 Shots Hit Robots 25 | 4 21 Core Hits 15 | 2 13 Critical Kills . | . . Critical Parts Destroyed . | . . Critical Strikes . | . . Melee Attacks . | . . Impact . | . . Slashing . | . . Piercing . | . . Sneak Attacks . | . . Combat Hostiles . | . . Follow-up Attacks . | . . Damage Inflicted 314 | 34 280 Guns 281 | 34 247 Cannons . | . . Explosions . | . . Melee . | . . Ramming 33 | . 33 Kinetic 281 | 34 247 Thermal . | . . Explosive . | . . Electromagnetic . | . . Impact . | . . Slashing . | . . Piercing . | . . Highest Corruption . | . . Average Corruption . | . . Corruption Purged . | . . Corruption Blocked . | . . Overload Shots . | . . Overflow Damage . | . . Projectiles . | . . Explosions . | . . Melee . | . . Knockbacks . | . . Impact . | . . Kinetic . | . . Secondary . | . . Self-Inflicted Damage . | . . Shots . | . . Rammed 17 | . 17 Targets Rammed 18 | . 18 Kicked . | . . Crushed 1 | . 1 Highest Temperature 21 | . 21 Average Temperature 7 | . 7 Received Heat Transfer 438 | . 438 Siege Activations . | . . Robots Corrupted . | . . Combat Hostiles . | . . Parts Fried . | . . Impact Corruptions . | . . Robots Melted . | . . Combat Hostiles . | . . Parts Melted . | . . Heat Transferred . | . . Parts Sabotaged . | . . Parts Stolen . | . . Parts Stripped . | . . Power Chain Reactions . | . . Alert | -11 -10 ------- Run | Yrd Mat Peak Influence 148 | 5 148 Initial 3 | . 3 Average 62 | 1 87 Maximum Alert Level . | . . Low Security (%) 100 | 100 100 Level 1 . | . . Level 2 . | . . Level 3 . | . . Level 4 . | . . Level 5 . | . . High Security . | . . Max Security . | . . Squads Dispatched 1 | . 1 Investigation . | . . Extermination . | . . Reinforcement 1 | . 1 Assault . | . . Garrison . | . . Intercept . | . . Searches Triggered . | . . Construction Impeded . | . . Haulers Reinforced . | . . Active Scanning Responses . | . . Cargo Convoy Interrupts . | . . Stealth | -11 -10 --------- Run | Yrd Mat Distress Signals 1 | . 1 Communications Jammed . | . . Distress Signals . | . . Times Spotted 15 | . 15 Peak Tracking Total 4 | . 4 Tactical Retreats . | . . Traps | -11 -10 ------- Run | Yrd Mat Traps Triggered . | . . Indirectly . | . . Trap Hack Attempts . | . . Triggered . | . . Disarmed . | . . Reprogrammed . | . . Reused . | . . Traps Extracted . | . . Installed . | . . Triggered . | . . Machines | -11 -10 ---------- Run | Yrd Mat Machines Disabled . | . . Max in Single Turn . | . . Machines Repaired . | . . Machines Dismantled . | . . Machines Sabotaged . | . . Overloaded Fab Kills . | . . Hacking | -11 -10 --------- Run | Yrd Mat Machines Accessed 2 | . 2 Terminals 2 | . 2 Fabricators . | . . Repair Stations . | . . Recycling Units . | . . Scanalyzers . | . . Garrison Access . | . . Total Hacks 4 | . 4 Successful 2 | . 2 Failed 2 | . 2 Catastrophic 1 | . 1 Database Lockouts . | . . Manual 4 | . 4 Terminals 4 | . 4 Fabricators . | . . Repair Stations . | . . Recycling Units . | . . Scanalyzers . | . . Garrison Access . | . . Terminal Hacks 1 | . 1 Robot Analysis 1 | . 1 Fabricator Hacks . | . . Repair Station Hacks . | . . Recycling Unit Hacks . | . . Scanalyzer . | . . Garrison Access Hacks . | . . Unauthorized Hacks 1 | . 1 Terminals 1 | . 1 Botnet 1 | . 1 Fabricators . | . . Repair Stations . | . . Recycling Units . | . . Scanalyzers . | . . Garrison Access . | . . Data Cores Recovered . | . . Used . | . . Hacking Detections 2 | . 2 Full Trace Events 1 | . 1 Feedback Events . | . . Feedback Blocked . | . . Robot Schematics Acquired . | . . Robots Built . | . . Authchips . | . . Time . | . . Total Robot Build Rating . | . . Part Schematics Acquired . | . . Parts Built . | . . Authchips . | . . Time . | . . Total Part Build Rating . | . . Parts Repaired . | . . Time . | . . Parts Recycled . | . . Recycled Matter . | . . Retrieved Matter . | . . Retrieved Components . | . . Parts Scanalyzed . | . . Part Schematics Acquired . | . . Parts Damaged . | . . Bothacking | -11 -10 ------------ Run | Yrd Mat Used RIF Installer . | . . Robots Hacked . | . . Non-combat . | . . Combat . | . . Robot Hacks Applied . | . . Relay Couplers Released . | . . Fabnet Peak Effective % . | . . Robots Rewired . | . . Allies Hacked . | . . Hacks Repelled . | . . Allies | -11 -10 -------- Run | Yrd Mat Total Allies . | . . Largest Group . | . . Highest-Rated Group . | . . Highest-Rated Ally . | . . Total Orders . | . . Ally Attacks . | . . Total Damage . | . . Kills . | . . Allies Corrupted . | . . Allies Melted . | . . Intel | -11 -10 ------- Run | Yrd Mat Robot Analysis Total 1 | . 1 Derelict Logs Recovered . | . . Drone Launches . | . . Drone Recoveries . | . . Exploration | -11 -10 ------------- Run | Yrd Mat Turns Passed 314 | 91 223 Spaces Moved 135 | 43 92 Core 3 | 3 . Treads 131 | 39 92 Legs . | . . Wheels 1 | 1 . Hover . | . . Flight . | . . Fastest Speed 50 | 50 160 Average Speed 156 | 150 160 Slowest Speed 160 | 160 160 Overloaded Moves . | . . Propulsion Burnouts . | . . Robots Hopped . | . . Cave-ins Triggered . | . . Exploration Rate (%) 12 | 5 19 Regions Visited 1 Branch Regions . Pre-discovered Areas . | . . Known Exits Taken . | . . Unknown Exits Taken 1 | 1 . Scrap Searched . | . . Spaces Dug . | . . Terrain Destroyed . | . . Melee . | . . Projectile . | . . AOE . | . . Terrain Rammed . | . . Walls Destroyed . | . . Machines Disabled . | . . Actions | -11 -10 --------- Run | Yrd Mat Total 186 | 59 127 Wait . | . . Move 134 | 42 92 Hop . | . . Pick Up 6 | 6 . Fast Attach 7 | 7 . Attach . | . . Detach . | . . Swap . | . . Drop . | . . Fire 21 | 4 17 Melee . | . . Ram . | . . Kick . | . . Crush 18 | . 18 Escape Stasis . | . . Rewire . | . . Trap . | . . Miscellaneous . | . . Route ------- -11/Scrapyard -10/Materials (discovered 1 exit: [*Mat]) History --------- Turn | Location | Event 10 | -11/Scrapyard | Discovered new exit (range 14) 92 | -11/Scrapyard | Entered Materials 168 | -10/Materials | Discovered new exit (range 12) 296 | -10/Materials | Core integrity fell below 50% 308 | -10/Materials | Core integrity fell below 20% 311 | -10/Materials | Build established: Mutant 315 | -10/Materials | Destroyed by G-47 Trooper with Particle Gun Last Messages --------------- 00252_ Slammed into G-47 Trooper. 00257_ K-01 Serf collects debris. 00257_ Slammed into G-47 Trooper. 00258_ Assault Rifle destroyed. 00258_ Crushed G-47 Trooper. 00258_ G-47 Trooper destroyed. 00260_ K-01 Serf collects debris. 00271_ K-01 Serf cleans the Terminal. 00273_ K-01 Serf collects debris. 00277_ W-16 Scout sends out distress signal. 00278_ Slammed into O-16 Technician. 00285_ K-01 Serf collects debris. 00297_ Lgt. Assault Rifle destroyed. 00301_ K-01 Serf collects debris. 00303_ Slammed into G-47 Trooper. 00310_ Wheel destroyed. 00311_ Slammed into G-47 Trooper. 00313_ Slammed into G-34 Mercenary. 00313_ G-34 Mercenary destroyed. 00314_ Slammed into G-47 Trooper. Map ----- +----------------------------------------------------+ | | | | | | | | | | | | | | | | | ????????????????????????????????????????????????? | | ????????????????????????????????????????????????? | | ????????????????????????????????????????????????? | | ????????????????????????????????????????????????? | | ????????????????????????????????????????????????? | | ????????????????????????????????????????????????? | | ???????????????????????##???????????????????????? | | ??????????????????????? ?????????????????????? | | ?????????????#####?????" """????????????????????? | | ?????????????# #?????" """????????????????????? | | ?????????????# #?????" """????????????????????? | | ?????????????# #?????? ?????#???????????????? | | ?????????????# #?????? ???? +???????????????? | | ?????????????# #?????? ???? #???????????????? | | ?????????????# #?????? ??? #???????????????? | | ?????????????# #??#+###o#### #???????????????? | | ??????######## #### #???????????????? | | ??????# # =@g #???????????????? | | ??????# """ %#!*r =%% #???????????????? | | ??????# "R %+%| *% #???????????????? | | ??????# """ #o "T" ????????? | | ??????# # """ ?????? | | ??????# # ??????? | | ??????######## ####+### ??????? | | ?????????????#%%%#################??????????????? | | ?????????????#%!%#????###???????????????????????? | | ? ############ % ######T########????????????????? | | #????????????????? | | #????????????????? | | [ #????????????????? | | ? ########### ####### #????????????????? | | ??????????????# T#???? #????????????????? | | ??????????????# = ""#???? ?????????????? | | ??????????????# ###???? < #??????????? | | ??????????????# T#????? #??????????? | | ??????????????#=%=""#????? ######??????????? | | ??????????????# ! ###????? #???????????????? | | ??????????????# #??????? #???????????????? | | ??????????????# #???????? #???????????????? | | ??????????????# #???????? #???????????????? | | ??????????????# #???????? #???????????????? | | ??????????????# #???????? ####???????????????? | +----------------------------------------------------+ Best States ------------- Heat Dissipation 25 Energy Generation 10 Energy Capacity 125 Matter Stores 300 Matter Capacity 300 Sight Range 16 Terrain Scan Density 10 Evasion (%) 40 Recoil Reduction 1 Item Schematics ----------------- None Robot Schematics ------------------ None Fabricated ------------ Nothing Alien Tech Used ----------------- None Achievements -------------- None Challenges ------------ None Game ------ Seed TransportSpacefoldSuite Manual? 0 Play Time 00:08:08 Cumulative 33.2 hours Start 2024.03.10 @ 20:53:51 End 2024.03.10 @ 21:03:20 Sessions 1 Manual Loads 0 Difficulty Rogue Special Mode None Game No. 35 Rogue 35 Adventurer 0 Explorer 0 Win Type - Total 0 Types 0/0/0/0/0/0/0/0/0 Lore% 22 Gallery% 27 Achievement% 23 Wizard Run 0 Options --------- Layout 1 ASCII 0 Keyboard 0 Movement Arrows Keybinds 0 Fullscreen 1 Font 20/X11 Map View 64x42 Zoom Use 35% Tactical HUD 1 Map Filters NONE Filters NONE Steam 0 RUN: b59e0536-a0ec-4a9a-b37c-6615c08e9029